bitfinex/quotes_BTCUSD_20250727
["timestamp","ask_amount","ask_price","bid_price","bid_amount"]
[1753630475374,0.0304277,118540.0,118530.0,1.40771955]
[1753630475914,0.03042763,118540.0,118530.0,1.40771955]
[1753630476696,0.03886317,118540.0,118530.0,1.40771955]
[1753630478291,0.04729878,118540.0,118530.0,0.67389491]
[1753630478483,0.03886317,118540.0,118530.0,1.40771955]
[1753630478934,0.03886317,118540.0,118530.0,1.27931955]
[1753630479131,0.03886317,118540.0,118530.0,1.40767955]
[1753630480586,0.04729878,118540.0,118530.0,1.40767955]
[1753630481026,0.03886345,118540.0,118530.0,1.40767955]
[1753630481367,0.03886345,118540.0,118530.0,1.27931955]
[1753630481566,0.03886345,118540.0,118530.0,1.40767955]
[1753630484962,0.03042784,118540.0,118530.0,1.40767955]
[1753630485185,0.03886352,118540.0,118530.0,1.40767955]
[1753630485391,0.03042784,118540.0,118530.0,1.40767955]
[1753630485600,0.02739784,118540.0,118530.0,1.40767955]
[1753630485834,0.0189623,118540.0,118530.0,1.40767955]
[1753630486040,0.02739784,118540.0,118530.0,1.40767955]
[1753630486744,0.0189623,118540.0,118530.0,1.40767955]
[1753630486968,0.01052683,118540.0,118530.0,1.40767955]
[1753630487641,0.01896237,118540.0,118530.0,1.40767955]
[1753630487852,0.0189623,118540.0,118530.0,1.40767955]
[1753630488919,0.02739791,118540.0,118530.0,1.40767955]
[1753630489076,0.03583366,118540.0,118530.0,1.40767955]
[1753630489298,0.02739791,118540.0,118530.0,1.40767955]
[1753630489497,0.24781882,118540.0,118530.0,0.88555723]
[1753630489679,0.24533234,118540.0,118530.0,0.28955589]
[1753630489881,0.61224466,118540.0,118530.0,0.16119589]
[1753630490094,0.61224466,118540.0,118530.0,0.13236001]
[1753630490559,0.24533234,118540.0,118530.0,0.13236001]
[1753630490773,0.61224466,118540.0,118530.0,0.13236001]
[1753630491189,0.61224466,118540.0,118530.0,0.12936001]
[1753630491390,0.24533234,118540.0,118530.0,0.12936001]
[1753630491602,0.61224466,118540.0,118530.0,0.15672412]
[1753630492050,0.24533234,118540.0,118530.0,0.15672412]
[1753630492283,0.61224466,118540.0,118530.0,0.15572412]
[1753630492503,0.61224466,118540.0,118530.0,0.15672412]
[1753630492744,0.61224466,118540.0,118530.0,0.13036001]
[1753630492913,0.24533234,118540.0,118530.0,0.13036001]
[1753630493411,0.57172268,118540.0,118530.0,0.13036001]
[1753630494091,0.24533234,118540.0,118530.0,0.13036001]
[1753630495798,0.24533234,118540.0,118530.0,0.15683344]
[1753630511092,0.24533234,118540.0,118530.0,0.13036001]
[1753630511319,0.24533234,118540.0,118530.0,0.00200001]
[1753630514206,0.22251234,118540.0,118530.0,0.02676001]
[1753630515022,0.18572234,118540.0,118530.0,0.43033388]
[1753630515222,0.18775263,118540.0,118530.0,0.03188001]
[1753630515433,0.22204263,118540.0,118530.0,0.02676001]
[1753630515786,0.6131965,118540.0,118530.0,0.13036001]
[1753630516011,0.7415565,118540.0,118530.0,0.00200001]
[1753630516734,1.53318767,118540.0,118530.0,0.00200001]
[1753630517632,1.53318767,118540.0,118530.0,0.00100001]
[1753630518474,1.61766497,118540.0,118530.0,0.00100001]
[1753630518910,1.1253972,118540.0,118530.0,0.00100001]
[1753630520498,1.1253972,118540.0,118530.0,1e-08]
[1753630520745,0.69040263,118540.0,118530.0,0.02476001]
[1753630520993,1.09040263,118540.0,118530.0,0.02476001]
[1753630521223,0.33195263,118540.0,118530.0,0.02686001]
[1753630521668,0.33504263,118540.0,118530.0,0.02686001]
[1753630524725,0.31615263,118540.0,118530.0,0.03008001]
[1753630525369,0.31412263,118540.0,118530.0,0.03008001]
[1753630526085,0.31626263,118540.0,118530.0,0.02686001]
[1753630526336,0.33493263,118540.0,118530.0,0.02476001]
[1753630526924,0.31923263,118540.0,118530.0,0.02476001]
[1753630529670,0.6457499,118540.0,118530.0,0.02476001]
[1753630530337,0.31923263,118540.0,118530.0,0.02476001]
[1753630541616,0.6457499,118540.0,118530.0,0.02476001]
[1753630542902,0.31923263,118540.0,118530.0,0.02476001]
[1753630544948,0.7836572,118540.0,118530.0,1e-08]
[1753630545198,1.2081345,118540.0,118530.0,1e-08]
[1753630545913,0.87438746,118530.0,118520.0,1e-08]
[1753630546135,0.54788514,118520.0,118510.0,1e-08]
[1753630546357,1.41375698,118520.0,118510.0,1e-08]
[1753630546580,1.19955701,118520.0,118510.0,1e-08]
[1753630547049,1.52607428,118520.0,118510.0,1e-08]
[1753630547570,1.19955701,118520.0,118510.0,1e-08]
[1753630548347,1.11507971,118520.0,118510.0,1e-08]
[1753630550047,1.51507971,118520.0,118510.0,1e-08]
[1753630556175,1.46164971,118520.0,118510.0,0.02261001]
[1753630556424,1.37717241,118520.0,118510.0,0.02474001]
[1753630557128,1.37717241,118520.0,118510.0,0.02261001]
[1753630557390,1.46164971,118520.0,118510.0,0.02261001]
[1753630559349,1.48438971,118520.0,118510.0,0.02261001]
[1753630567553,1.15787244,118520.0,118510.0,0.02261001]
[1753630567750,1.48438971,118520.0,118510.0,0.02261001]
[1753630569147,1.15787244,118520.0,118510.0,0.02261001]
[1753630569359,1.48438971,118520.0,118510.0,0.02261001]
[1753630571006,1.46164971,118520.0,118510.0,0.02261001]
[1753630574248,1.13513244,118520.0,118510.0,0.02261001]
[1753630574450,1.46164971,118520.0,118510.0,0.02261001]
[1753630578568,1.13513244,118520.0,118510.0,0.02261001]
[1753630578783,1.46164971,118520.0,118510.0,0.02261001]
[1753630580809,1.48438971,118520.0,118510.0,0.02261001]
[1753630582820,1.48438971,118520.0,118510.0,1e-08]
[1753630583034,1.92708428,118520.0,118510.0,1e-08]
[1753630583430,0.17721504,118500.0,118490.0,0.05471]
[1753630583676,0.97413231,118500.0,118490.0,0.05471]
[1753630583877,0.97713231,118500.0,118490.0,0.02281]
[1753630584125,0.99402767,118500.0,118490.0,0.0002]
[1753630584362,1.10084961,118500.0,118490.0,0.0002]
[1753630584812,1.08447173,118500.0,118490.0,0.0002]
[1753630588656,1.09305555,118500.0,118490.0,0.0002]
[1753630589941,1.09305555,118500.0,118490.0,0.02383]
[1753630590214,1.07031555,118500.0,118490.0,0.02383]
[1753630590838,1.09566955,118500.0,118490.0,0.02383]
[1753630593394,1.18014685,118500.0,118490.0,0.02383]
[1753630594447,1.09566955,118500.0,118490.0,0.022275]
[1753630595428,1.12012955,118500.0,118490.0,0.022275]
[1753630595631,0.17722999,118490.0,118480.0,0.0321]
[1753630595799,0.30558999,118490.0,118480.0,0.03411]
[1753630596241,0.30558999,118490.0,118480.0,0.05774]
[1753630598052,0.30558999,118490.0,118480.0,0.06074]
[1753630599036,0.30768999,118490.0,118480.0,0.06074]
[1753630601663,0.17722999,118490.0,118480.0,0.06074]
[1753630601885,0.17722999,118490.0,118480.0,0.39674427]
[1753630605552,0.17727999,118490.0,118480.0,0.39674427]
[1753630607530,0.1857193,118490.0,118480.0,0.99342389]
[1753630607758,0.16884061,118490.0,118480.0,0.60958157]
[1753630609869,0.16884061,118490.0,118480.0,0.2830643]
[1753630610076,0.16884061,118490.0,118480.0,0.60958157]
[1753630613977,0.17727957,118490.0,118480.0,1.12235272]
[1753630614214,0.17728014,118490.0,118480.0,0.95354786]
[1753630614442,0.17728014,118490.0,118480.0,0.62703059]
[1753630615598,0.17728014,118490.0,118480.0,0.30051332]
[1753630615816,0.17728014,118490.0,118480.0,0.62703059]
[1753630617517,0.18253014,118490.0,118480.0,0.0351]
[1753630617760,0.33564014,118490.0,118480.0,0.0032]
[1753630618235,1.01765741,118490.0,118480.0,0.0032]
[1753630618479,1.03315741,118490.0,118480.0,0.0032]
[1753630618938,0.70664014,118490.0,118480.0,0.0032]
[1753630619160,1.11763471,118490.0,118480.0,0.0032]
[1753630621337,1.11763471,118490.0,118480.0,0.0022]
[1753630621807,0.79111744,118490.0,118480.0,0.0002]
[1753630622042,1.11763471,118490.0,118480.0,0.0002]
[1753630622267,0.79111744,118490.0,118480.0,0.0002]
[1753630626464,0.64560014,118490.0,118480.0,0.38122727]
[1753630626692,0.64560014,118490.0,118480.0,0.38651727]
[1753630627565,0.64763014,118490.0,118480.0,0.38338727]
[1753630629760,0.64763014,118490.0,118480.0,0.05687]
[1753630630899,0.65085014,118490.0,118480.0,0.05687]
[1753630631134,0.65085014,118490.0,118480.0,0.05471]
[1753630631364,1.00215741,118490.0,118480.0,0.0002]
[1753630631589,1.03405741,118490.0,118480.0,0.0002]
[1753630633881,0.70754014,118490.0,118480.0,0.0002]
[1753630635889,1.03405741,118490.0,118480.0,0.0002]
[1753630638210,1.11853471,118490.0,118480.0,0.0002]
[1753630638828,1.20301201,118490.0,118480.0,0.0002]
[1753630645459,1.11853471,118490.0,118480.0,0.0002]
[1753630646853,0.73532744,118490.0,118480.0,0.0002]
[1753630647088,0.51931014,118490.0,118480.0,0.02637]
[1753630647306,0.64560014,118490.0,118480.0,0.06015]
[1753630649014,0.64560014,118490.0,118480.0,0.38666727]
[1753630649432,0.64560014,118490.0,118480.0,0.06015]
[1753630650717,0.64770014,118490.0,118480.0,0.05717]
[1753630651573,0.73217744,118490.0,118480.0,0.05717]
[1753630653444,0.73519744,118490.0,118480.0,0.05717]
[1753630654820,0.65072014,118490.0,118480.0,0.05717]
[1753630659349,0.52240014,118490.0,118480.0,0.05717]
[1753630659552,0.65072014,118490.0,118480.0,0.05717]
[1753630659765,0.65072014,118490.0,118480.0,0.05514]
[1753630660429,0.52240014,118490.0,118480.0,0.05514]
[1753630660617,0.65072014,118490.0,118480.0,0.05514]
[1753630662646,0.65068014,118490.0,118480.0,0.05514]
[1753630663320,1.06167471,118490.0,118480.0,0.05514]
[1753630663969,0.73515744,118490.0,118480.0,0.05514]
[1753630666225,1.06167471,118490.0,118480.0,0.02434]
[1753630666432,0.75808744,118490.0,118480.0,0.02434]
[1753630667790,1.16908201,118490.0,118480.0,1e-08]
[1753630668075,1.20088201,118490.0,118480.0,1e-08]
[1753630668299,1.2420493,118490.0,118480.0,1e-08]
[1753630668508,1.64645764,118490.0,118480.0,1e-08]
[1753630669157,1.24645764,118490.0,118480.0,1e-08]
[1753630670476,1.24845764,118490.0,118480.0,1e-08]
[1753630670905,1.25438416,118490.0,118480.0,1e-08]
[1753630671351,1.25437815,118490.0,118480.0,1e-08]
[1753630673558,1.2543624,118490.0,118480.0,1e-08]
[1753630676507,1.25435461,118490.0,118480.0,1e-08]
[1753630677041,1.25435169,118490.0,118480.0,1e-08]
[1753630678449,1.25434924,118490.0,118480.0,1e-08]
[1753630678899,0.50379215,118460.0,118450.0,0.03448]
[1753630679138,0.63419215,118460.0,118450.0,0.03363]
[1753630679369,1.15287058,118460.0,118450.0,1e-08]
[1753630679613,1.18407058,118460.0,118450.0,1e-08]
[1753630680059,1.20943558,118460.0,118450.0,1e-08]
[1753630680264,0.88304047,118460.0,118450.0,1e-08]
[1753630680501,0.51728984,118450.0,118440.0,0.0002]
[1753630680735,1.13216714,118450.0,118440.0,0.00233]
[1753630680968,1.15605714,118450.0,118440.0,0.026]
[1753630681194,1.18142214,118450.0,118440.0,0.026]
[1753630681502,0.17730482,118440.0,118430.0,0.05129071]
[1753630681697,0.30770482,118440.0,118430.0,0.04809071]
[1753630681906,0.66116209,118440.0,118430.0,0.04809071]
[1753630682127,0.66116209,118440.0,118430.0,0.05022071]
[1753630682376,0.17731978,118430.0,118420.0,0.032]
[1753630682608,0.33465978,118430.0,118420.0,0.03413]
[1753630682824,0.34314268,118430.0,118420.0,0.03413]
[1753630683541,0.34009268,118430.0,118420.0,0.03413]
[1753630683971,0.34009268,118430.0,118420.0,0.03713]
[1753630684178,0.34009268,118430.0,118420.0,0.03613]
[1753630684607,0.34009268,118430.0,118420.0,0.03413]
[1753630684814,0.34314268,118430.0,118420.0,0.03413]
[1753630685028,0.34314268,118430.0,118420.0,0.03513]
[1753630686144,0.33465978,118430.0,118420.0,0.03513]
[1753630686352,0.17731978,118430.0,118420.0,0.062]
[1753630686564,0.30563978,118430.0,118420.0,0.062]
[1753630687734,0.30563978,118430.0,118420.0,0.0588]
[1753630689279,0.30563978,118430.0,118420.0,0.427389]
[1753630689551,0.17731978,118430.0,118420.0,0.427389]
[1753630690309,0.17731978,118430.0,118420.0,0.38851727]
[1753630690951,0.30563978,118430.0,118420.0,0.38851727]
[1753630693824,0.30563978,118430.0,118420.0,0.062]
[1753630694048,0.33469978,118430.0,118420.0,0.033]
[1753630695626,0.33469978,118430.0,118420.0,0.001]
[1753630702579,0.33474978,118430.0,118420.0,0.001]
[1753630703441,0.35050798,118430.0,118420.0,0.001]
[1753630704638,0.35051408,118430.0,118420.0,0.0313]
[1753630706217,0.35051408,118430.0,118420.0,0.03344]
[1753630706956,0.35051408,118430.0,118420.0,0.0313]
[1753630708628,0.33474978,118430.0,118420.0,0.03344]
[1753630709307,0.33474978,118430.0,118420.0,0.426619]
[1753630709308,0.30572978,118430.0,118420.0,0.426619]
[1753630709558,0.30572978,118430.0,118420.0,0.38781727]
[1753630710637,0.30519211,118430.0,118420.0,0.38781727]
[1753630711097,0.30384378,118430.0,118420.0,0.38781727]
[1753630711565,0.30384378,118430.0,118420.0,0.0613]
[1753630711816,0.30384378,118430.0,118420.0,0.0582]
[1753630712262,0.32681378,118430.0,118420.0,0.09700173]
[1753630713175,0.30384378,118430.0,118420.0,0.09700173]
[1753630714302,0.3196455,118430.0,118420.0,0.10010173]
[1753630714530,0.3196455,118430.0,118420.0,0.426619]
[1753630714994,0.3196855,118430.0,118420.0,0.426619]
[1753630715183,0.30388378,118430.0,118420.0,0.426619]
[1753630719980,0.30388378,118430.0,118420.0,0.423519]
[1753630722280,0.32685378,118430.0,118420.0,0.38471727]
[1753630722513,0.32685378,118430.0,118420.0,0.35995727]
[1753630722947,0.32685378,118430.0,118420.0,0.03344]
[1753630724252,0.30388378,118430.0,118420.0,0.38471727]
[1753630724929,0.32685378,118430.0,118420.0,0.38471727]
[1753630725145,0.32685378,118430.0,118420.0,0.03344]
[1753630726531,0.32685378,118430.0,118420.0,0.35995727]
[1753630727619,0.32685378,118430.0,118420.0,0.411603]
[1753630728095,0.32685378,118430.0,118420.0,0.436363]
[1753630728826,0.17548378,118430.0,118420.0,0.439463]
[1753630729059,0.18392737,118430.0,118420.0,0.439463]
[1753630730662,0.18392737,118430.0,118420.0,0.11294573]
[1753630730888,0.18392737,118430.0,118420.0,0.38781727]
[1753630731310,0.18392737,118430.0,118420.0,0.39630813]
[1753630731550,0.18392737,118430.0,118420.0,0.0613]
[1753630731782,0.18392737,118430.0,118420.0,0.38781727]
[1753630732536,0.18392737,118430.0,118420.0,0.001]
[1753630732537,0.21214737,118430.0,118420.0,0.001]
[1753630732800,0.53866464,118430.0,118420.0,0.001]
[1753630733029,0.21214737,118430.0,118420.0,0.001]
[1753630734374,0.22794737,118430.0,118420.0,0.001]
[1753630734601,0.56976464,118430.0,118420.0,0.001]
[1753630734830,0.99424194,118430.0,118420.0,1e-08]
[1753630736886,0.53313476,118420.0,118410.0,0.0002]
[1753630737086,1.07469933,118420.0,118410.0,0.0002]
[1753630737325,1.10267933,118420.0,118410.0,0.0002]
[1753630737810,0.77616206,118420.0,118410.0,0.0002]
[1753630738261,0.77616206,118420.0,118410.0,0.00068441]
[1753630743073,0.79216206,118420.0,118410.0,0.00068441]
[1753630743299,1.11867933,118420.0,118410.0,0.00068441]
[1753630743533,0.79216206,118420.0,118410.0,0.00068441]
[1753630744954,0.79216206,118420.0,118410.0,0.00168441]
[1753630745662,0.79216206,118420.0,118410.0,0.00175956]
[1753630747205,0.77616206,118420.0,118410.0,0.00175956]
[1753630750253,0.76036206,118420.0,118410.0,0.00175956]
[1753630756382,0.63176206,118420.0,118410.0,0.00175956]
[1753630757251,0.63020481,118420.0,118410.0,0.00175956]
[1753630765504,0.51577751,118420.0,118410.0,0.06183956]
[1753630765757,0.51577751,118420.0,118410.0,0.42513716]
[1753630766219,0.51577751,118420.0,118410.0,0.59404181]
[1753630766448,5e-05,118430.0,118420.0,0.16889039]
[1753630766678,0.00849344,118430.0,118420.0,0.69249196]
[1753630766908,0.01693667,118430.0,118420.0,0.71782458]
[1753630767145,0.03382385,118430.0,118420.0,0.80230188]
[1753630767368,0.0084933,118430.0,118420.0,0.80230188]
[1753630767589,0.01693667,118430.0,118420.0,0.80237703]
[1753630767810,0.01693674,118430.0,118420.0,0.88685433]
[1753630768027,0.02538033,118430.0,118420.0,0.88685433]
[1753630768480,0.03382399,118430.0,118420.0,0.88685433]
[1753630769848,0.20270061,118430.0,118420.0,0.88885447]
[1753630770289,0.20270061,118430.0,118420.0,0.88985447]
[1753630770744,0.19425717,118430.0,118420.0,0.88141031]
[1753630770995,0.19425717,118430.0,118420.0,0.8898544]
[1753630771602,0.19425717,118430.0,118420.0,0.88141031]
[1753630771818,0.19425717,118430.0,118420.0,0.8898544]
[1753630772029,0.19425717,118430.0,118420.0,0.89829842]
[1753630772249,0.02538105,118430.0,118420.0,0.89829842]
[1753630772899,0.19425717,118430.0,118420.0,0.89829842]
[1753630773328,0.00849316,118430.0,118420.0,0.89829842]
[1753630773568,0.01693653,118430.0,118420.0,0.89829842]
[1753630773807,5e-05,118430.0,118420.0,0.91574744]
[1753630775398,0.00849316,118430.0,118420.0,0.91574744]
[1753630775622,0.01693646,118430.0,118420.0,0.91574744]
[1753630776098,0.02537998,118430.0,118420.0,0.91574744]
[1753630776330,0.01693646,118430.0,118420.0,0.91574744]
[1753630776544,0.03382342,118430.0,118420.0,0.91574744]
[1753630780086,0.03382335,118430.0,118420.0,0.91574744]
[1753630780732,0.02537983,118430.0,118420.0,0.91574744]
[1753630780984,0.03382335,118430.0,118420.0,0.91574744]
[1753630782000,0.04226701,118430.0,118420.0,0.91574744]
[1753630782322,0.03382335,118430.0,118420.0,0.91574744]
[1753630782692,0.04226701,118430.0,118420.0,0.91574744]
[1753630783371,0.21114313,118430.0,118420.0,0.91574744]
[1753630783612,0.2111437,118430.0,118420.0,0.91574744]
[1753630784096,5e-05,118430.0,118420.0,0.91574744]
[1753630786348,5e-05,118430.0,118420.0,1.58226471]
[1753630787230,5e-05,118430.0,118420.0,1.57926471]
[1753630787698,5e-05,118430.0,118420.0,1.58126471]
[1753630788604,5e-05,118430.0,118420.0,1.98135771]
[1753630788877,0.19648547,118480.0,118470.0,0.17725999]
[1753630789098,0.21537573,118480.0,118470.0,0.68002061]
[1753630789322,0.21537573,118480.0,118470.0,0.72066128]
[1753630789771,0.21537573,118480.0,118470.0,0.74611824]
[1753630790017,0.21537573,118480.0,118470.0,0.73767757]
[1753630790256,0.21637573,118480.0,118470.0,0.73816198]
[1753630790485,0.21637573,118480.0,118470.0,0.75504324]
[1753630791412,0.21637573,118480.0,118470.0,0.84164004]
[1753630791413,0.0341196,118480.0,118470.0,0.84164004]
[1753630791629,0.05943939,118480.0,118470.0,0.88263906]
[1753630791858,0.05943931,118480.0,118470.0,0.85908906]
[1753630792082,0.24165441,118480.0,118470.0,0.85064861]
[1753630792312,0.23321481,118480.0,118470.0,0.62853753]
[1753630792539,0.21633512,118480.0,118470.0,0.51182023]
[1753630793450,0.21633512,118480.0,118470.0,0.68063934]
[1753630793673,0.21633512,118480.0,118470.0,0.72922096]
[1753630794097,0.21633512,118480.0,118470.0,0.72078022]
[1753630794353,0.2078951,118480.0,118470.0,0.72078022]
[1753630794577,0.19945486,118480.0,118470.0,0.72078022]
[1753630794982,0.20292496,118480.0,118470.0,0.73962148]
[1753630795236,0.21980501,118480.0,118470.0,0.73962148]
[1753630795849,0.21980501,118480.0,118470.0,0.74806193]
[1753630796513,0.22478501,118480.0,118470.0,0.72274022]
[1753630796764,0.21634513,118480.0,118470.0,0.73118089]
[1753630796965,0.21634513,118480.0,118470.0,0.72274022]
[1753630797385,0.21634513,118480.0,118470.0,0.73118103]
[1753630797609,0.21634513,118480.0,118470.0,0.40466376]
[1753630797833,0.21634513,118480.0,118470.0,0.7396217]
[1753630798241,0.21634513,118480.0,118470.0,0.74806229]
[1753630798697,0.03909995,118480.0,118470.0,0.75650274]
[1753630798927,0.21136484,118480.0,118470.0,0.84098004]
[1753630799150,0.04255998,118480.0,118470.0,0.84098004]
[1753630799744,0.04255962,118480.0,118470.0,0.84098004]
[1753630800156,0.00943974,118480.0,118470.0,0.86510004]
[1753630800880,0.01787969,118480.0,118470.0,0.86510004]
[1753630801102,0.04188969,118480.0,118470.0,0.84098004]
[1753630801327,0.03344974,118480.0,118470.0,0.84944326]
[1753630801538,0.02501,118480.0,118470.0,0.87356326]
[1753630801707,0.001,118480.0,118470.0,0.87356326]
[1753630802120,0.001,118480.0,118470.0,0.89403228]
[1753630802342,0.001,118480.0,118470.0,1.22054955]
[1753630802519,0.001,118480.0,118470.0,0.89403228]
[1753630803130,0.04093784,118490.0,118480.0,0.22662472]
[1753630803389,0.02406,118490.0,118480.0,0.80511962]
[1753630803594,5e-05,118490.0,118480.0,1.02699689]
[1753630803801,0.00848896,118490.0,118480.0,1.15889689]
[1753630804007,0.01692813,118490.0,118480.0,1.15897204]
[1753630804231,0.00848896,118490.0,118480.0,1.15897204]
[1753630804436,0.04937723,118490.0,118480.0,1.15595204]
[1753630804579,0.04937723,118490.0,118480.0,1.13183204]
[1753630804786,0.05781661,118490.0,118480.0,0.4787975]
[1753630804990,0.05781661,118490.0,118480.0,0.80631477]
[1753630805261,0.04937723,118490.0,118480.0,0.80631477]
[1753630805411,0.04093799,118490.0,118480.0,0.80631477]
[1753630805588,0.0578164,118490.0,118480.0,0.80631477]
[1753630805800,0.04093799,118490.0,118480.0,1.13283204]
[1753630806008,0.03249896,118490.0,118480.0,1.13283204]
[1753630806707,5e-05,118490.0,118480.0,1.15695204]
[1753630807584,5e-05,118490.0,118480.0,1.17742106]
[1753630808288,5e-05,118490.0,118480.0,1.04854106]
[1753630808501,5e-05,118490.0,118480.0,1.17758106]
[1753630809177,5e-05,118490.0,118480.0,1.04854106]
[1753630809415,5e-05,118490.0,118480.0,1.17754106]
[1753630810788,5e-05,118490.0,118480.0,1.04854106]
[1753630811025,5e-05,118490.0,118480.0,1.17758106]
[1753630813945,5e-05,118490.0,118480.0,1.51758106]
[1753630814938,5e-05,118490.0,118480.0,1.51658106]
[1753630815388,5e-05,118490.0,118480.0,1.51858106]
[1753630816984,5e-05,118490.0,118480.0,1.51658106]
[1753630817408,5e-05,118490.0,118480.0,1.51958106]
[1753630818064,5e-05,118490.0,118480.0,1.51858106]
[1753630818439,5e-05,118490.0,118480.0,1.52058106]
[1753630829632,5e-05,118490.0,118480.0,2.52918006]
[1753630829851,5e-05,118490.0,118480.0,2.55435031]
[1753630830487,0.02563,118520.0,118510.0,0.19407557]
[1753630830716,0.0277,118520.0,118510.0,0.80513439]
[1753630831272,0.0277,118520.0,118510.0,0.47861712]
[1753630831492,0.0277,118520.0,118510.0,0.80722954]
[1753630831697,0.0277,118520.0,118510.0,0.48119668]
[1753630831911,0.0287,118520.0,118510.0,0.80771395]
[1753630832557,0.03713675,118520.0,118510.0,0.77349395]
[1753630832776,0.0540106,118520.0,118510.0,0.77357395]
[1753630833198,0.04457364,118520.0,118510.0,0.77357395]
[1753630835372,0.03713675,118520.0,118510.0,0.77357395]
[1753630835610,0.03613675,118520.0,118510.0,0.77357395]
[1753630835926,0.04457364,118520.0,118510.0,0.77357395]
[1753630836346,0.05301067,118520.0,118510.0,0.77357395]
[1753630836559,0.04457364,118520.0,118510.0,0.77357395]
[1753630836775,0.05301067,118520.0,118510.0,0.31765668]
[1753630837001,0.04457364,118520.0,118510.0,0.77357395]
[1753630837231,0.05301067,118520.0,118510.0,0.77357395]
[1753630837876,0.0530106,118520.0,118510.0,0.77357395]
[1753630838284,0.04457371,118520.0,118510.0,0.44705668]
[1753630838444,0.04457371,118520.0,118510.0,0.77357395]
[1753630839504,0.03613675,118520.0,118510.0,0.77357395]
[1753630839743,0.04457364,118520.0,118510.0,0.77357395]
[1753630839945,0.03613675,118520.0,118510.0,0.77357395]
[1753630840546,0.0277,118520.0,118510.0,0.77357395]
[1753630840758,0.0277,118520.0,118510.0,0.77559395]
[1753630841746,0.03613675,118520.0,118510.0,0.77559395]
[1753630841942,0.04457371,118520.0,118510.0,0.77559395]
[1753630842151,0.04457364,118520.0,118510.0,0.77559395]
[1753630842793,0.03613675,118520.0,118510.0,0.77559395]
[1753630842991,0.0277,118520.0,118510.0,0.77559395]
[1753630843192,0.03613675,118520.0,118510.0,0.77559395]
[1753630844497,0.0277,118520.0,118510.0,0.77559395]
[1753630844934,0.03613689,118520.0,118510.0,0.77559395]
[1753630845153,0.0277,118520.0,118510.0,0.77559395]
[1753630845582,0.03613682,118520.0,118510.0,0.77559395]
[1753630845788,0.04457378,118520.0,118510.0,0.77559395]
[1753630846182,0.03613682,118520.0,118510.0,0.77559395]
[1753630846704,0.0277,118520.0,118510.0,0.77559395]
[1753630847446,0.0277,118520.0,118510.0,0.44907668]
[1753630847660,0.0277,118520.0,118510.0,0.77559395]
[1753630847874,0.03613675,118520.0,118510.0,0.77559395]
[1753630848315,0.04457357,118520.0,118510.0,0.77559395]
[1753630848529,0.0277,118520.0,118510.0,0.77559395]
[1753630849171,0.0277,118520.0,118510.0,0.44907668]
[1753630849386,0.0277,118520.0,118510.0,0.77559395]
[1753630850112,0.03613675,118520.0,118510.0,0.77559395]
[1753630850775,0.21332217,118520.0,118510.0,0.10613209]
[1753630851029,0.21332217,118520.0,118510.0,0.12999956]
[1753630853605,0.21332217,118520.0,118510.0,0.16269956]
[1753630862638,0.21332217,118520.0,118510.0,0.48921683]
[1753630865053,0.21332217,118520.0,118510.0,0.35977683]
[1753630865273,0.21332217,118520.0,118510.0,0.5486323]
[1753630865494,0.21332217,118520.0,118510.0,0.4191123]
[1753630865711,0.21332217,118520.0,118510.0,0.5486323]
[1753630866425,0.21332217,118520.0,118510.0,0.5506723]
[1753630866876,0.21332217,118520.0,118510.0,0.71943442]
[1753630867074,0.17717047,118530.0,118520.0,0.21712217]
[1753630867310,0.19404333,118530.0,118520.0,0.68958582]
[1753630867770,0.19404333,118530.0,118520.0,0.69802285]
[1753630867992,0.18560694,118530.0,118520.0,0.67278669]
[1753630868217,0.18560694,118530.0,118520.0,0.66954683]
[1753630868410,0.21026694,118530.0,118520.0,0.64693683]
[1753630868828,0.21026694,118530.0,118520.0,0.65537415]
[1753630869036,0.21026694,118530.0,118520.0,0.6638114]
[1753630869500,0.21126694,118530.0,118520.0,0.6638114]
[1753630869732,0.21126694,118530.0,118520.0,0.67224858]
[1753630870167,0.21226694,118530.0,118520.0,0.67224858]
[1753630871317,0.21226694,118530.0,118520.0,0.6638114]
[1753630871737,0.21226694,118530.0,118520.0,0.67219449]
[1753630872816,0.20383033,118530.0,118520.0,0.67219449]
[1753630873282,0.20383033,118530.0,118520.0,0.65537415]
[1753630874642,0.20211554,118530.0,118520.0,0.6638913]
[1753630874846,0.20211554,118530.0,118520.0,0.65537415]
[1753630875993,0.17073365,118530.0,118520.0,0.68966125]
[1753630876431,0.17917019,118530.0,118520.0,0.68966125]
[1753630876649,0.20600019,118530.0,118520.0,0.65537415]
[1753630876852,0.20910019,118530.0,118520.0,0.47818894]
[1753630877075,0.20066365,118530.0,118520.0,0.47818894]
[1753630877790,0.20066365,118530.0,118520.0,0.64693683]
[1753630878903,0.20066365,118530.0,118520.0,0.47818894]
[1753630879133,0.20066365,118530.0,118520.0,0.46975155]
[1753630879573,0.20066365,118530.0,118520.0,0.27283428]
[1753630879774,0.20066365,118530.0,118520.0,0.27079428]
[1753630883183,0.20066365,118530.0,118520.0,0.59731155]
[1753630883758,0.20066365,118530.0,118520.0,0.59723155]
[1753630884173,0.20066365,118530.0,118520.0,0.27071428]
[1753630884545,0.20066365,118530.0,118520.0,0.59723155]
[1753630885814,0.20066365,118530.0,118520.0,0.59934155]
[1753630887346,0.20066365,118530.0,118520.0,0.27282428]
[1753630887555,0.20066365,118530.0,118520.0,0.23921428]
[1753630887756,0.20066365,118530.0,118520.0,0.23929428]
[1753630888434,0.20066365,118530.0,118520.0,0.05781698]
[1753630888635,0.68808092,118530.0,118520.0,7.515e-05]
[1753630889079,0.36156365,118530.0,118520.0,7.515e-05]
[1753630890604,0.33026365,118530.0,118520.0,7.515e-05]
[1753630897041,0.17917019,118530.0,118520.0,0.56936495]
[1753630897263,0.17917019,118530.0,118520.0,0.65384225]
[1753630897455,0.17917019,118530.0,118520.0,0.66520935]
[1753630897888,0.17917019,118530.0,118520.0,0.67364638]
[1753630898524,0.17917019,118530.0,118520.0,0.648335]
[1753630898784,0.17917019,118530.0,118520.0,0.47114972]
[1753630899007,0.17917019,118530.0,118520.0,0.46821972]
[1753630899219,0.20219019,118530.0,118520.0,0.46821972]
[1753630900937,0.20219019,118530.0,118520.0,0.63696761]
[1753630901111,0.20219019,118530.0,118520.0,0.622665]
[1753630901314,0.20219019,118530.0,118520.0,0.44547972]
[1753630901528,0.20119019,118530.0,118520.0,0.44547972]
[1753630902002,0.20119019,118530.0,118520.0,0.44647972]
[1753630902836,0.20019019,118530.0,118520.0,0.623665]
[1753630903260,0.20019019,118530.0,118520.0,0.624665]
[1753630903906,0.19175365,118530.0,118520.0,0.624665]
[1753630904766,0.19175365,118530.0,118520.0,0.63310232]
[1753630905848,0.19175365,118530.0,118520.0,0.624665]
[1753630908259,0.19698365,118530.0,118520.0,0.44747972]
[1753630908690,0.19175365,118530.0,118520.0,0.44747972]